bitfinex/quotes_ETHUSD_20260214
["timestamp","ask_amount","ask_price","bid_price","bid_amount"]
[1771080770814,0.6483261,2085.5,2084.9,1.06187107]
[1771080770996,1.8471212,2085.5,2084.9,1.19909827]
[1771080771203,1.8471212,2085.5,2084.8,1.19911713]
[1771080771388,1.8471212,2085.5,2084.4,1.19938591]
[1771080771593,1.8471212,2085.5,2084.4,2.26125698]
[1771080772613,2.92960974,2085.5,2084.4,1.06187107]
[1771080772814,1.08248854,2085.4,2084.3,3.11240855]
[1771080773120,1.19892576,2085.2,2084.2,7.77279319]
[1771080773283,1.19892576,2085.2,2084.3,28.0578]
[1771080773481,1.08248854,2085.0,2084.3,28.0578]
[1771080773681,1.08248854,2085.0,2083.2,33.91984129]
[1771080773882,1.08248854,2084.8,2083.5,28.0578]
[1771080774116,1.08248854,2084.8,2083.2,4.80017022]
[1771080774117,1.57448854,2084.8,2083.7,29.11967107]
[1771080774313,0.6483261,2084.7,2083.8,28.0578]
[1771080774497,0.6483261,2084.7,2083.6,1.917]
[1771080774498,0.6483261,2084.7,2084.0,28.0578]
[1771080774700,1.19892576,2085.2,2084.2,1.06187107]
[1771080775005,1.19892576,2085.2,2084.4,28.0578]
[1771080775187,4.79570305,2085.3,2084.5,1.19932837]
[1771080775384,4.79570305,2085.3,2084.5,1.14932837]
[1771080775839,1.08248854,2085.2,2084.1,1.19955856]
[1771080776127,1.684,2085.2,2084.2,29.11967107]
[1771080776328,1.684,2085.2,2084.3,6.161]
[1771080777325,1.19869581,2085.6,2084.4,2.26125698]
[1771080777634,1.08248854,2085.5,2084.2,1.19947227]
[1771080777824,1.08248854,2085.5,2084.1,3.11753097]
[1771080778407,1.08248854,2085.5,2084.2,29.11967107]
[1771080778696,1.08248854,2085.5,2084.2,19.708]
[1771080779028,1.08248854,2085.5,2084.2,15.956]
[1771080779215,1.08248854,2085.5,2084.2,2.851]
[1771080779527,1.08248854,2085.3,2084.1,3.11753097]
[1771080780535,1.19881077,2085.4,2084.2,29.11967107]
[1771080780758,1.19881077,2085.4,2084.4,1.06187107]
[1771080780928,2.28129931,2085.4,2084.2,28.0578]
[1771080781294,2.28129931,2085.4,2084.1,4.21691499]
[1771080781494,2.28129931,2085.4,2084.3,1.19944345]
[1771080782224,1.17968798,2085.3,2084.3,1.19944345]
[1771080782523,1.17968798,2085.3,2084.2,1.19948653]
[1771080782825,1.17968798,2085.3,2083.7,28.0578]
[1771080783194,1.17968798,2085.3,2083.7,1.09938402]
[1771080783528,1.19892576,2085.2,2084.1,1.09938402]
[1771080783719,2.37861374,2085.2,2084.1,18.611]
[1771080784025,1.1989026,2085.3,2084.3,1.09938402]
[1771080784228,1.17968798,2085.2,2084.0,2.86000014]
[1771080784393,1.17968798,2085.2,2084.1,28.0578]
[1771080784597,1.17968798,2085.2,2084.1,22.515]
[1771080784825,1.17968798,2085.2,2084.1,11.149]
[1771080785327,1.17968798,2085.2,2084.1,2.127]
[1771080785526,1.19898326,2085.1,2084.0,1.76161612]
[1771080785695,2.37867124,2085.1,2084.0,1.76161612]
[1771080786500,1.17968798,2085.0,2084.0,1.76161612]
[1771080787733,1.19909827,2084.9,2084.0,1.76161612]
[1771080787914,2.37878625,2084.9,2084.0,1.76161612]
[1771080788733,1.19909827,2084.9,2084.0,1.76161612]
[1771080789309,1.17968798,2085.0,2084.2,1.09938402]
[1771080789515,2.37874321,2085.0,2084.0,1.76161612]
[1771080789713,1.17968798,2085.0,2084.3,29.15718402]
[1771080789899,1.17968798,2085.0,2084.4,28.0578]
[1771080790106,1.17968798,2085.0,2084.4,13.158]
[1771080790306,1.17968798,2085.0,2084.3,1.09938402]
[1771080790606,1.17968798,2085.0,2084.4,28.0578]
[1771080790826,1.17968798,2085.0,2084.5,28.0578]
[1771080791003,1.19887828,2085.3,2084.5,28.0578]
[1771080791204,1.19884367,2085.4,2084.5,28.0578]
[1771080792239,2.87758088,2085.8,2084.8,28.0578]
[1771080792939,1.19858088,2085.8,2084.8,28.0578]
[1771080793329,1.17968798,2085.8,2084.7,29.9818]
[1771080793539,1.17968798,2085.8,2084.7,1.924]
[1771080793844,1.17968798,2085.8,2084.7,1.90066326]
[1771080794013,1.19863834,2085.7,2084.7,1.90066326]
[1771080794343,1.17968798,2085.6,2084.7,3.09987599]
[1771080795311,1.17968798,2085.6,2084.8,27.644]
[1771080795579,2.87663834,2085.7,2084.8,28.0578]
[1771080795840,2.87663834,2085.7,2084.9,1.09938402]
[1771080796009,1.19863834,2085.7,2084.9,1.09938402]
[1771080796214,4.79434414,2085.8,2085.0,1.19904076]
[1771080797109,4.79434414,2085.8,2084.8,29.15718402]
[1771080797338,4.79434414,2085.8,2084.9,28.0578]
[1771080797934,4.79434414,2085.8,2084.8,1.09938402]
[1771080798150,0.003,2085.9,2085.1,2.29836728]
[1771080798648,1.18268798,2085.9,2084.7,2.29859733]
[1771080798945,0.003,2085.9,2085.1,1.09938402]
[1771080799133,0.003,2085.9,2085.2,1.09938402]
[1771080799949,0.003,2085.9,2085.0,1.088]
[1771080800116,1.20152341,2085.9,2085.1,1.19898326]
[1771080800320,2.38121139,2085.9,2085.0,2.28699957]
[1771080800949,2.38121139,2085.9,2085.0,1.088]
[1771080801148,2.38121139,2085.9,2085.0,2.28702686]
[1771080801446,2.38121139,2085.9,2084.6,4.79706538]
[1771080801447,1.17968798,2085.8,2084.6,1.09938402]
[1771080801639,1.17968798,2085.8,2084.7,29.15718402]
[1771080801840,1.17968798,2085.8,2084.8,28.0578]
[1771080802344,1.17968798,2085.8,2084.8,17.736]
[1771080802545,1.19863834,2085.7,2084.8,26.346]
[1771080802747,2.37832632,2085.7,2084.7,2.29857055]
[1771080803051,1.17968798,2085.6,2084.5,29.25712837]
[1771080803357,1.17968798,2085.6,2084.6,28.0578]
[1771080803956,1.17968798,2085.6,2084.6,1.09938402]
[1771080804142,1.17968798,2085.6,2084.6,28.0578]
[1771080804520,1.17968798,2085.4,2084.4,3.12135636]
[1771080805343,1.17968798,2085.4,2084.4,1.922]
[1771080806060,1.17968798,2085.4,2084.2,2.06245993]
[1771080806428,1.19886826,2085.3,2084.4,1.19938591]
[1771080807265,1.19886826,2085.3,2084.5,28.0578]
[1771080807560,1.19886826,2085.3,2084.5,1.09938402]
[1771080807766,1.19886826,2085.3,2084.4,1.19938591]
[1771080807767,1.17968798,2087.1,2085.3,0.61232954]
[1771080808070,1.17968798,2087.9,2086.1,20.4578]
[1771080808250,1.17968798,2087.6,2085.8,20.4578]
[1771080808580,1.17968798,2087.0,2085.5,1.19872749]
[1771080808739,1.17968798,2086.8,2085.5,1.19872749]
[1771080809147,0.1382529,2086.7,2085.5,1.19872749]
[1771080809335,1.31794088,2086.7,2085.4,2.0617701]
[1771080809536,1.17968798,2086.5,2085.4,2.06180656]
[1771080809853,1.17968798,2086.5,2085.4,0.863]
[1771080810039,1.17968798,2086.3,2085.4,0.863]
[1771080810234,1.17968798,2086.1,2085.3,0.2503356]
[1771080810738,1.19846596,2086.0,2085.3,0.2503356]
[1771080811842,1.40374404,2085.9,2085.3,0.2503356]
[1771080812044,1.26549114,2085.9,2085.3,1e-08]
[1771080812258,0.1382529,2085.9,2085.3,1e-08]
[1771080812570,1.19817876,2086.5,2085.6,20.4578]
[1771080812765,1.33643166,2086.5,2085.6,20.4578]
[1771080813145,0.1382529,2086.5,2085.6,20.4578]
[1771080813355,2.86998705,2086.9,2085.7,1.15472038]
[1771080813566,0.1382529,2086.8,2085.7,1.15472038]
[1771080813734,0.1382529,2086.8,2085.8,21.61252038]
[1771080813943,0.1382529,2086.7,2085.9,20.4578]
[1771080814371,0.1382529,2086.6,2085.6,1.15472038]
[1771080814540,7.72813221,2087.0,2085.9,20.4578]
[1771080814541,1.33626402,2086.8,2085.9,20.4578]
[1771080814739,1.33626402,2086.8,2085.9,5.518]
[1771080814963,0.1382529,2086.7,2085.9,5.518]
[1771080815354,0.1382529,2086.6,2085.9,6.67272038]
[1771080815554,0.1382529,2086.8,2086.0,20.4578]
[1771080815765,0.1382529,2086.8,2086.1,20.4578]
[1771080815972,1.19777692,2087.2,2086.2,20.4578]
[1771080816157,0.1382529,2087.1,2086.3,20.4578]
[1771080816370,0.1382529,2087.1,2085.9,1.15472038]
[1771080816704,0.1382529,2087.0,2086.3,1.15472038]
[1771080816850,1.26549114,2087.9,2086.2,1.19835106]
[1771080817051,1.26549114,2087.9,2086.5,21.61252038]
[1771080817355,1.26549114,2087.9,2086.2,1.19835106]
[1771080817550,1.26549114,2087.9,2086.3,14.292]
[1771080818150,1.26549114,2087.9,2086.2,1.19835106]
[1771080818386,1.26549114,2087.7,2086.0,1.19842799]
[1771080818800,1.26549114,2087.7,2085.8,5.28617425]
[1771080818801,1.26549114,2087.4,2085.8,0.492]
[1771080818957,1.26549114,2087.2,2085.5,1.19875329]
[1771080819287,1.26549114,2087.0,2085.2,0.492]
[1771080819455,1.26549114,2086.9,2085.2,20.4578]
[1771080819647,1.26549114,2086.9,2085.2,15.626]
[1771080819850,1.26549114,2086.9,2085.1,1.19898326]
[1771080820675,1.26549114,2086.7,2085.2,20.4578]
[1771080820882,2.8411359,2086.6,2085.2,20.4578]
[1771080821065,2.8411359,2086.6,2085.3,20.4578]
[1771080821384,1.272,2086.5,2085.3,20.4578]
[1771080821585,1.1741359,2087.8,2085.8,1.12475829]
[1771080821781,1.1741359,2087.8,2086.2,1.12475829]
[1771080821782,3.59859861,2087.8,2086.2,1.12475829]
[1771080821989,3.59859861,2087.8,2086.1,20.4578]
[1771080821990,3.59859861,2087.8,2086.4,20.4578]
[1771080822669,3.59859861,2087.8,2086.5,1.19817876]
[1771080822986,1.1741359,2087.7,2086.5,1.19817876]
[1771080823377,2.531,2087.6,2086.5,1.19817876]
[1771080824171,2.531,2087.6,2086.2,4.79339172]
[1771080824172,1.1741359,2087.5,2086.2,4.79339172]
[1771080824755,3.43066216,2087.4,2086.4,1.19823619]
[1771080825075,1.1741359,2087.3,2085.7,1.19859809]
[1771080825682,1.1741359,2087.3,2085.6,1.19865536]
[1771080825891,3.0941359,2087.3,2085.8,1.12475829]
[1771080826056,2.24,2087.2,2085.9,20.4578]
[1771080826685,1.19754742,2087.6,2086.1,1.19840851]
[1771080826886,0.863,2087.2,2086.1,1.19840851]
[1771080827091,1.847,2087.3,2086.2,1.12475829]
[1771080827399,0.863,2087.8,2086.4,1.12475829]
[1771080827594,1.126,2087.7,2086.5,20.4578]
[1771080827768,1.298,2087.6,2086.5,20.4578]
[1771080828395,2.4721359,2087.6,2086.2,20.4578]
[1771080829100,3.27560479,2087.5,2086.3,1.19829362]
[1771080829257,2.06060479,2087.5,2086.4,3.503]
[1771080829455,1.19760479,2087.5,2086.4,3.503]
[1771080830390,1.19760479,2087.5,2086.3,1.19829362]
[1771080830562,1.19760479,2087.5,2086.4,20.4578]
[1771080830784,1.667,2087.4,2086.3,1.19829362]
[1771080831171,1.19771954,2087.3,2086.3,1.19829362]
[1771080831991,2.86470583,2087.4,2086.3,1.19829362]
[1771080832690,1.666,2087.3,2086.3,1.19829362]
[1771080833472,1.19777692,2087.2,2086.3,1.19829362]
[1771080834499,2.526,2087.1,2086.3,1.19829362]
[1771080835190,1.19777692,2087.2,2086.3,1.19829362]
[1771080835496,1.664,2087.0,2086.3,1.19829362]
[1771080835691,1.663,2087.1,2086.1,2.52]
[1771080835887,1.663,2087.1,2086.1,20.4578]
[1771080836193,1.1741359,2087.0,2085.8,1.19953733]
[1771080836786,1.663,2086.9,2085.8,0.001]
[1771080837095,1.1741359,2086.8,2085.8,0.001]
[1771080837674,1.19806392,2086.7,2085.8,0.001]
[1771080837876,3.61706392,2086.7,2085.8,0.001]
[1771080838705,2.524,2086.6,2085.8,0.001]
[1771080838906,3.6981359,2086.6,2085.8,0.001]
[1771080839211,2.524,2086.6,2085.8,0.001]
[1771080839772,1.19800651,2086.8,2085.8,0.001]
[1771080839975,2.525,2086.7,2085.8,0.001]
[1771080840378,2.524,2086.6,2085.8,0.001]
[1771080840877,1.661,2086.5,2085.8,0.001]
[1771080841502,1.662,2086.4,2085.8,0.001]
[1771080841705,1.662,2086.5,2085.8,0.001]
[1771080842210,1.19800651,2086.8,2085.8,0.001]
[1771080842378,2.525,2086.7,2085.8,0.001]
[1771080843605,1.662,2086.6,2085.8,0.001]
[1771080843800,5.94355717,2087.2,2085.8,1.19958088]
[1771080844101,2.06070311,2087.4,2086.2,1.10679977]
[1771080844301,1.661,2087.3,2086.2,1.10679977]
[1771080844608,2.81324292,2087.3,2086.0,20.4578]
[1771080845689,2.524,2087.2,2086.0,20.4578]
[1771080846131,3.67524292,2087.1,2086.0,1.19842329]
[1771080846294,3.67524292,2087.1,2085.9,1.19848155]
[1771080846295,1.15224292,2087.0,2085.9,1.19848155]
[1771080846609,1.15224292,2087.0,2085.8,1.1995352]
[1771080846914,1.15224292,2087.0,2085.8,0.001]
[1771080847811,1.15224292,2086.8,2085.8,0.001]
[1771080847988,1.15224292,2086.6,2085.8,0.001]
[1771080849381,1.19806392,2086.7,2085.8,0.001]
[1771080849578,2.522,2086.6,2085.8,0.001]
[1771080849796,4.79225571,2087.1,2085.8,0.001]
[1771080849797,1.19789171,2087.0,2085.8,0.001]
[1771080850009,1.659,2086.9,2085.8,0.001]
[1771080850208,2.522,2086.9,2085.8,0.001]
[1771080851305,3.67424292,2086.9,2085.8,0.001]
[1771080851509,1.15224292,2086.8,2085.8,0.001]
[1771080852213,1.19806392,2086.7,2085.8,0.001]
[1771080854018,1.15224292,2086.6,2085.8,0.001]
[1771080854397,2.35042168,2086.5,2085.8,0.001]
[1771080854993,1.19817876,2086.5,2085.8,0.001]
[1771080855316,1.656,2086.4,2085.8,0.001]
[1771080856011,2.519,2086.3,2085.8,0.001]
[1771080856917,3.71734772,2086.3,2085.8,0.001]
[1771080859008,4.86959064,2086.3,2085.8,0.001]
[1771080860224,4.86959064,2086.3,2085.5,0.001]
[1771080860513,1.15224292,2086.2,2085.5,0.001]
[1771080860892,1.19840851,2086.1,2085.5,0.001]
[1771080861293,2.52,2086.0,2085.5,0.001]
[1771080861490,1.19840851,2086.1,2085.5,0.001]
[1771080861909,2.52,2086.0,2085.5,0.001]
[1771080862993,3.71850709,2086.0,2085.0,1.10679977]
[1771080863222,4.79225809,2086.7,2085.0,1.10679977]
[1771080863223,5.94517928,2086.5,2085.0,1.10679977]
[1771080863527,3.71823619,2086.4,2085.0,1.10679977]
[1771080864245,1.15224292,2086.3,2084.9,4.79636229]
[1771080864398,1.15224292,2086.3,2084.9,5.90316206]
[1771080864809,1.15224292,2086.3,2085.1,1.10679977]
[1771080865038,3.71835106,2086.2,2085.2,1.19892576]
[1771080865244,4.87059398,2086.2,2085.1,2.30574469]
[1771080865542,1.15224292,2086.1,2085.1,1.19894492]
[1771080866525,1.656,2086.0,2085.1,2.30574469]
[1771080866726,2.519,2086.0,2085.1,6.12574469]
[1771080866930,2.519,2086.0,2085.1,5.01894492]
[1771080867129,1.19852341,2085.9,2085.1,5.01894492]
[1771080868414,7.31309367,2086.0,2085.1,5.01894492]
[1771080868415,3.71750012,2086.0,2085.1,5.01894492]
[1771080870427,3.71750012,2086.0,2085.0,1.10679977]
[1771080871541,3.71750012,2086.0,2085.1,1.19898326]
[1771080874630,1.06247586,2085.9,2084.8,1.19915579]
[1771080875745,3.71258088,2085.8,2084.8,2.27268445]
[1771080876846,1.19858088,2085.8,2084.8,2.27268445]
[1771080877051,1.65,2085.7,2084.8,2.27268445]
[1771080878148,2.84867498,2085.7,2084.8,2.27268445]
[1771080880829,2.84867498,2085.7,2084.9,1.07707477]
[1771080881026,1.647,2085.6,2084.9,1.07707477]
[1771080882762,2.84572004,2085.6,2085.0,1.19904076]
[1771080883834,2.84572004,2085.6,2084.7,1.19921331]
[1771080884444,2.84572004,2085.6,2084.7,5.01921331]
[1771080886333,2.84572004,2085.6,2084.7,1.19921331]
[1771080886534,3.86261956,2085.6,2084.7,1.19921331]
[1771080888160,1.01689952,2085.5,2084.7,1.19921331]
[1771080889872,1.19881077,2085.4,2084.6,0.001]
[1771080890052,2.21571029,2085.4,2084.6,0.001]
[1771080891360,1.01689952,2085.3,2084.6,0.001]
[1771080892047,2.21582528,2085.2,2084.6,0.001]
[1771080892241,1.642,2085.1,2084.6,0.001]
[1771080892660,1.642,2085.0,2084.6,0.001]
[1771080894777,1.642,2085.0,2084.6,1.07807477]
[1771080895554,1.19858088,2085.8,2084.6,1.07807477]
[1771080895756,2.504,2085.7,2084.6,1.07807477]
[1771080896486,1.19869581,2085.6,2084.8,1.07707477]
[1771080896790,3.85659533,2085.6,2084.7,1.19921331]
[1771080896943,1.01689952,2085.5,2084.7,1.19921331]
[1771080899281,1.19881077,2085.4,2084.6,4.79785326]
[1771080900259,1.19881077,2085.4,2084.6,5.87492803]
[1771080900893,2.83972974,2085.6,2084.7,1.07707477]
[1771080901400,1.05042696,2085.5,2084.6,0.001]
[1771080901684,1.05042696,2085.5,2084.5,0.001]
[1771080901985,1.05042696,2085.5,2084.5,2.25226434]
[1771080902411,4.79466396,2085.7,2084.7,1.05193765]
[1771080902412,1.1986622,2085.7,2084.7,1.05193765]
[1771080902598,2.8356622,2085.7,2084.9,1.05193765]
[1771080903306,2.83564849,2085.7,2085.0,1.19904076]
[1771080903600,1.638,2085.6,2085.0,2.25097841]
[1771080904686,1.19970471,2085.8,2085.1,1.05193765]
[1771080904687,1.637,2085.7,2085.1,1.05193765]
[1771080905926,0.0011,2085.8,2085.2,1.19892576]
[1771080906210,1.636,2085.7,2085.2,2.25086341]
[1771080906599,1.19968111,2085.8,2085.2,1.05193765]
[1771080906808,2.83568111,2085.8,2085.1,1.19893936]
[1771080908086,0.0011,2085.8,2085.2,1.05193765]
[1771080908292,0.5511,2085.8,2085.2,1.05193765]
[1771080908492,0.0011,2085.8,2085.2,1.05193765]
[1771080909975,0.0011,2085.8,2085.3,1.19886826]
[1771080910809,0.0011,2086.1,2085.3,1.19886826]
[1771080910810,0.0011,2086.1,2085.4,1.05193765]
[1771080912190,0.0011,2086.1,2085.5,2.25069094]
[1771080912394,0.0011,2086.1,2085.6,1.05193765]
[1771080913215,0.0011,2086.3,2085.7,20.4578]
[1771080913454,1.20094971,2086.9,2086.0,1.05193765]
[1771080913589,1.19917972,2086.7,2085.8,1.05193765]
[1771080914301,0.0011,2086.7,2085.9,1.19852341]
[1771080914716,1.63,2086.6,2085.9,1.19852341]
[1771080915317,1.63,2086.6,2085.9,2.25046106]
[1771080915515,0.0011,2086.7,2085.9,2.25046106]
[1771080915819,0.0011,2086.7,2086.0,1.05193765]
[1771080916182,0.0011,2086.7,2086.2,1.05193765]
[1771080916387,0.003,2086.9,2086.4,1.05193765]
[1771080917009,0.003,2086.9,2086.1,2.25034616]
[1771080917314,1.628,2086.8,2086.1,1.19840851]
[1771080917515,0.003,2086.9,2086.2,1.05193765]
[1771080918213,0.003,2086.9,2086.3,1.19829362]
[1771080918715,2.24774496,2088.0,2086.7,1.05193765]
[1771080918890,1.05042696,2087.9,2086.7,1.05193765]
[1771080919697,2.492,2087.8,2086.7,1.05193765]
[1771080920897,1.628,2087.7,2086.8,1.19800651]
[1771080921323,2.67842696,2087.7,2086.8,1.19800651]
[1771080922223,1.05042696,2087.6,2086.7,1.1980201]
[1771080922424,4.7894455,2088.0,2086.8,1.05193765]
[1771080922630,3.87474496,2088.0,2086.9,1.05193765]
[1771080922927,1.1974327,2087.8,2086.8,20.4578]
[1771080923132,1.1974327,2087.8,2086.7,2.24995775]
[1771080923301,2.24785966,2087.8,2086.7,2.24995775]
[1771080923494,2.24785966,2087.8,2086.8,4.13193765]
[1771080923700,2.49,2087.7,2086.7,1.1980201]
[1771080924195,3.54042696,2087.7,2086.7,1.1980201]
[1771080924623,3.54042696,2087.7,2086.7,2.24995775]
[1771080924824,1.1974327,2087.8,2086.9,1.19794911]
[1771080925125,2.67642696,2087.9,2086.9,2.24988676]
[1771080925293,1.297,2087.8,2087.0,5.049]
[1771080925498,0.0011,2088.0,2087.0,5.049]
[1771080925725,1.6281,2088.0,2087.1,1.05193765]
[1771080926132,0.0011,2088.0,2087.1,1.05193765]
[1771080926333,1.6281,2088.0,2087.1,1.05193765]
[1771080926537,3.87584702,2088.0,2086.9,1.19794911]
[1771080926942,2.82542006,2088.0,2087.0,1.05193765]
[1771080927427,1.6281,2088.0,2087.0,1.05193765]
[1771080927614,1.627,2087.9,2087.2,1.05193765]
[1771080927799,2.06043337,2088.0,2086.7,1.05193765]
[1771080927994,1.05042696,2087.9,2086.8,1.05193765]
[1771080928732,1.626,2087.8,2086.8,1.05193765]
[1771080929299,0.0011,2088.0,2086.9,1.19794911]
[1771080929499,1.05042696,2087.9,2086.9,1.19794911]
[1771080929702,1.626,2087.8,2086.9,1.19794911]
[1771080930104,1.05042696,2087.7,2086.6,4.79233801]
[1771080930301,1.626,2087.8,2086.6,5.84427566]
[1771080930501,0.0011,2088.0,2086.8,1.05193765]
[1771080930728,0.8631,2088.0,2086.9,21.50973765]
[1771080930933,1.625,2087.9,2086.9,1.05193765]
[1771080931738,0.0011,2088.0,2087.3,0.9550416]
[1771080931900,5.11829415,2089.7,2088.0,0.9550416]
[1771080932102,1.52920303,2089.7,2088.4,21.4128416]
[1771080932307,0.0011,2089.6,2088.4,0.9550416]
[1771080932502,0.95291298,2089.6,2087.9,0.24996149]
[1771080932756,0.95291298,2089.4,2087.9,0.24996149]
[1771080933039,0.95291298,2089.2,2087.9,0.24996149]
[1771080933208,0.95291298,2089.0,2087.9,0.24996149]
[1771080933402,0.95291298,2089.2,2087.9,0.24996149]
[1771080933617,1.19668756,2089.1,2088.0,1.197318]
[1771080933819,0.0011,2089.1,2088.1,21.4128416]
[1771080934019,0.95291298,2089.8,2088.4,20.4578]
[1771080934220,0.491,2089.7,2088.7,20.4578]
[1771080934439,1.44501298,2089.7,2088.3,0.9550416]
[1771080934640,0.95401298,2089.6,2088.1,2.545]
[1771080934848,0.95401298,2089.6,2087.9,1.44732929]
[1771080935051,0.95401298,2089.6,2087.9,0.24996149]
[1771080935354,0.95291298,2089.4,2087.9,0.24996149]
[1771080935536,0.95291298,2089.2,2087.9,0.24996149]
[1771080935920,0.95291298,2089.0,2087.9,0.24996149]
[1771080936364,0.95401298,2088.9,2087.9,0.24996149]
[1771080936558,0.667,2088.8,2087.9,1.44732623]
[1771080936859,0.862,2088.7,2087.9,0.24996149]
[1771080937155,0.8631,2088.7,2087.9,0.24996149]
[1771080937451,0.0011,2088.6,2087.9,1.4473361]
[1771080937622,1.19807404,2088.6,2087.9,1.4473361]
[1771080937824,1.19807404,2088.6,2087.8,1.19739057]
[1771080938243,0.0011,2088.6,2087.8,1.19739057]
[1771080939252,5.73923474,2089.3,2087.9,21.4128416]
[1771080939443,1.624,2089.0,2088.0,3.204]
[1771080939643,2.14971512,2088.9,2087.7,1.19748617]
[1771080939851,2.15081512,2088.9,2087.7,1.19748617]
[1771080940023,2.15081512,2088.9,2087.6,2.15255321]
[1771080940223,0.95291298,2088.8,2087.6,2.15255321]
[1771080940456,0.95291298,2088.6,2087.3,1.19771954]
[1771080941559,1.197146,2088.3,2087.0,1.19789171]
[1771080941859,1.197146,2088.3,2087.3,0.95165929]
[1771080942036,0.0011,2088.2,2087.3,0.95165929]
[1771080942233,0.0011,2088.2,2087.4,20.4578]
[1771080942554,0.0011,2088.1,2087.4,20.4578]
[1771080942849,0.0011,2088.3,2087.4,20.4578]
[1771080943055,0.0011,2088.3,2087.6,0.95165929]
[1771080943440,0.0011,2088.2,2087.6,0.95165929]
[1771080943648,0.0011,2088.2,2087.7,1.19749006]
[1771080943833,1.19693028,2088.7,2087.7,1.19749006]
[1771080944033,0.0011,2088.6,2087.7,1.19749006]
[1771080945360,0.0011,2088.6,2087.7,2.14914935]
[1771080945724,0.0011,2088.6,2087.4,1.19766216]
[1771080945929,0.0011,2088.6,2087.7,20.4578]
[1771080946130,0.0011,2088.6,2087.8,8.769]
[1771080946430,0.0011,2088.6,2087.8,2.303]
[1771080947381,1.19693028,2088.7,2087.8,2.303]
[1771080947526,0.0011,2088.6,2087.8,2.303]
[1771080947870,0.0011,2088.6,2087.8,1.19741183]
[1771080948175,0.0011,2088.6,2087.5,3.82]
[1771080948468,0.0011,2088.6,2087.6,13.638]
[1771080948755,0.0011,2088.6,2087.6,12.086]
[1771080948962,0.0011,2088.6,2087.5,1.19760479]
[1771080948963,0.95538306,2088.6,2087.5,1.19760479]
[1771080949140,0.0011,2088.5,2087.5,2.14926408]
[1771080949341,0.0011,2088.5,2087.6,6.979]
[1771080949547,0.0011,2088.5,2087.6,2.665]
[1771080949870,2.15207062,2089.1,2087.9,2.14903464]
[1771080950163,0.0011,2089.0,2088.1,21.40945929]
[1771080950373,0.0011,2089.0,2088.2,0.95165929]
[1771080950666,0.95648306,2089.0,2087.9,1.19737535]
[1771080951233,0.95648306,2089.0,2087.8,1.19738695]
[1771080951459,0.95648306,2089.0,2087.6,2.14915968]
[1771080951943,2.1521852,2088.9,2087.6,2.14915968]
[1771080952138,0.0011,2088.8,2087.6,2.14915968]
[1771080952571,1.6201,2088.7,2087.7,0.95165929]
[1771080952744,0.0011,2088.7,2087.8,20.4578]
[1771080952939,0.0011,2088.6,2087.8,6.653]
[1771080953947,1.19807404,2088.6,2087.8,1.1974327]
[1771080954549,0.0011,2088.6,2087.9,21.40945929]
[1771080954746,0.0011,2088.6,2087.8,1.1974327]
[1771080955473,1.19693659,2088.7,2087.8,1.1974327]
[1771080955676,0.0011,2088.6,2087.8,1.1974327]
[1771080956056,0.0011,2088.6,2087.7,20.4578]
[1771080957290,0.0011,2088.6,2087.9,0.95165929]
[1771080957874,0.0011,2088.6,2088.1,0.95165929]
[1771080958075,0.0011,2088.6,2088.2,1.19720333]
[1771080959299,0.0011,2088.6,2087.7,1.19749006]
[1771080959597,0.0011,2088.6,2087.8,20.4578]
[1771080959971,0.0011,2088.6,2088.0,1.197318]
[1771080960184,0.0011,2088.6,2087.7,1.19749006]
[1771080960385,0.0011,2088.6,2087.8,20.4578]
[1771080960585,0.0011,2088.6,2087.8,11.93265929]
[1771080960872,0.0011,2088.6,2087.9,20.4578]
[1771080961094,0.0011,2088.6,2087.8,0.95165929]
[1771080961298,0.0011,2088.6,2087.9,4.19]
[1771080961984,0.0011,2088.5,2088.0,1.197318]
[1771080962179,1.612,2088.8,2087.9,1.1973306]
[1771080962498,2.5117693,2088.8,2087.9,1.1973306]
[1771080962701,0.0011,2088.7,2087.9,1.1973306]
[1771080962908,0.9008693,2088.7,2087.7,4.606]
[1771080963119,0.0011,2088.6,2087.7,4.606]
[1771080963906,0.0011,2088.6,2087.7,14.259]
[1771080964102,2.09784334,2088.6,2087.5,2.10350722]
[1771080964404,2.09784334,2088.6,2087.6,15.0]
[1771080964905,0.8997693,2088.5,2087.6,0.001]
[1771080965097,0.8997693,2088.5,2086.9,1.19791192]
[1771080965602,0.8997693,2088.5,2087.4,0.001]
[1771080965904,0.8997693,2088.3,2087.4,0.001]
[1771080966106,4.56797263,2088.2,2087.4,0.001]
[1771080966512,0.8997693,2088.1,2087.4,0.001]
[1771080968109,0.8997693,2087.9,2086.6,5.6972955]
[1771080968314,0.8997693,2087.9,2086.7,20.4578]
[1771080968484,0.8997693,2087.9,2086.8,0.90494107]
[1771080968682,1.608,2087.8,2086.8,0.90494107]
[1771080968884,1.608,2087.8,2086.6,4.79235443]
[1771080968885,2.5077693,2087.8,2086.7,20.4578]
[1771080969419,1.608,2087.8,2086.8,0.90494107]
[1771080969828,0.862,2087.9,2087.0,0.90494107]
[1771080969829,1.607,2087.9,2087.0,0.90494107]
[1771080970314,1.197146,2088.3,2087.2,0.90494107]
[1771080970611,1.607,2088.2,2087.4,20.4578]
[1771080970783,1.607,2088.2,2087.1,2.10277538]
[1771080970987,2.5067693,2088.2,2087.2,2.275]
[1771080971600,1.607,2088.2,2087.3,0.90494107]
[1771080972402,2.80421086,2088.2,2087.4,1.19766216]
[1771080972599,1.19721086,2088.2,2087.4,1.19766216]
[1771080972804,2.80321086,2088.2,2087.4,1.19766216]
[1771080972997,1.19721621,2088.2,2087.4,1.19766216]
[1771080973197,2.80321621,2088.2,2087.4,1.19766216]
[1771080973532,0.8997693,2088.1,2087.0,1.19789171]
[1771080973736,0.8997693,2088.1,2087.1,20.4578]
[1771080973933,0.8997693,2088.1,2086.9,1.19790459]
[1771080974426,2.0970873,2088.0,2086.9,1.19790459]
[1771080975629,2.0970873,2088.0,2086.8,1.19797725]
[1771080975630,0.8997693,2087.9,2086.8,1.19797725]
[1771080975834,0.8997693,2087.9,2086.7,1.19802405]
[1771080976433,0.8997693,2087.9,2086.7,20.4578]
[1771080976622,0.8997693,2087.7,2086.8,1.19800651]
[1771080976826,2.467,2087.6,2086.8,1.19800651]